bitfinex-derivatives/quotes_SOLF0:USTF0_20250117
["timestamp","ask_amount","ask_price","bid_price","bid_amount"]
[1737103426950,7.43156071,214.92,214.81,11.98064627]
[1737103427253,7.32484627,214.88,214.81,11.98064627]
[1737103428048,4.6549,214.86,214.81,11.98064627]
[1737103428248,7.32484627,214.88,214.81,7.32484627]
[1737103428444,7.32484627,214.9,214.83,7.32484627]
[1737103428651,4.6547,214.87,214.81,11.98064627]
[1737103428853,4.6547,214.87,214.81,7.32484627]
[1737103429651,4.6545,214.88,214.81,7.32484627]
[1737103431055,4.6545,214.88,214.83,4.6555]
[1737103432757,7.32484627,214.89,214.73,4.86]
[1737103432952,4.6554,214.84,214.79,7.32484627]
[1737103433651,4.6558,214.82,214.77,4.6569]
[1737103433852,7.32484627,214.83,214.77,4.6569]
[1737103434454,11.98054627,214.83,214.77,4.6569]
[1737103434951,4.6559,214.82,214.77,4.6569]
[1737103435762,7.32484627,214.83,214.75,4.6573]
[1737103435961,7.32484627,214.81,214.75,4.6573]
[1737103436659,7.32484627,214.81,214.74,7.32484627]
[1737103436962,7.32484627,214.81,214.72,7.32484627]
[1737103437261,7.32484627,214.79,214.7,1.5172]
[1737103437461,11.98144627,214.79,214.72,4.6578]
[1737103437761,11.98144627,214.79,214.7,1.5172]
[1737103437762,7.32484627,214.84,214.77,7.32484627]
[1737103437962,7.43357106,214.85,214.77,7.32484627]
[1737103438157,4.6556,214.83,214.77,7.32484627]
[1737103438961,4.6558,214.82,214.77,7.32484627]
[1737103440062,4.6558,214.82,214.77,11.98164627]
[1737103440257,7.32484627,214.8,214.73,7.32484627]
[1737103442259,7.32484627,214.8,214.71,7.32484627]
[1737103442461,4.6566,214.79,214.72,4.6577]
[1737103442661,7.43799702,214.83,214.73,7.32484627]
[1737103442966,4.6564,214.79,214.74,4.6575]
[1737103443667,4.6562,214.8,214.75,4.6573]
[1737103443867,14.76284329,214.83,214.75,7.32484627]
[1737103444163,8.82764627,214.85,214.77,7.32484627]
[1737103444360,4.6556,214.83,214.77,11.98154627]
[1737103444562,7.32484627,214.83,214.77,11.98154627]
[1737103444765,4.656,214.81,214.76,4.6571]
[1737103445063,7.32484627,214.83,214.75,7.32484627]
[1737103445655,4.656,214.81,214.76,4.6571]
[1737103445969,7.32484627,214.83,214.75,7.32484627]
[1737103446164,7.32484627,214.81,214.73,11.98234627]
[1737103446661,7.32484627,214.79,214.7,1.5172]
[1737103446864,7.32484627,214.77,214.7,7.32484627]
[1737103447066,7.32484627,214.79,214.7,7.32484627]
[1737103447264,1.5028,214.85,214.74,4.6575]
[1737103447265,4.6567,214.78,214.74,4.6575]
[1737103447455,7.32484627,214.82,214.74,7.32484627]
[1737103448367,7.32484627,214.8,214.74,7.32484627]
[1737103448565,7.32484627,214.78,214.72,7.32484627]
[1737103449162,4.6571,214.76,214.72,4.658]
[1737103449562,7.32484627,214.78,214.72,4.658]
[1737103449862,4.6571,214.77,214.72,4.658]
[1737103450364,4.6571,214.76,214.72,4.658]
[1737103451067,7.32484627,214.78,214.7,7.32484627]
[1737103451267,7.32484627,214.76,214.7,7.32484627]
[1737103451658,4.6575,214.75,214.71,4.6582]
[1737103452161,7.32484627,214.78,214.72,7.32484627]
[1737103452362,7.32484627,214.81,214.72,7.32484627]
[1737103452668,3.0293,214.82,214.69,3.0127]
[1737103452669,6.1371,214.82,214.76,11.98174627]
[1737103452865,7.32484627,214.83,214.76,11.98174627]
[1737103453360,4.656,214.81,214.76,7.32484627]
[1737103454165,7.32484627,214.83,214.76,7.32484627]
[1737103454358,7.32484627,214.83,214.69,3.0127]
[1737103454359,7.32484627,214.81,214.74,7.32484627]
[1737103455069,4.6568,214.78,214.74,7.32484627]
[1737103455665,4.6565,214.79,214.74,11.98234627]
[1737103456657,4.6565,214.79,214.75,4.6573]
[1737103457061,4.6565,214.79,214.74,7.32484627]
[1737103457669,7.32484627,214.81,214.74,7.32484627]
[1737103457865,4.6568,214.78,214.74,11.98234627]
[1737103458363,11.98104627,214.81,214.74,7.32484627]
[1737103458565,4.6562,214.81,214.76,7.32484627]
[1737103458967,7.32484627,214.83,214.76,11.98194627]
[1737103459167,4.6563,214.8,214.76,11.98194627]
[1737103459360,4.6563,214.8,214.76,4.6571]
[1737103459561,4.6566,214.79,214.74,11.98224627]
[1737103459764,4.6566,214.79,214.74,7.32484627]
[1737103459966,7.32484627,214.84,214.76,7.32484627]
[1737103460270,4.656,214.82,214.78,4.6566]
[1737103460467,7.32484627,214.84,214.76,7.32484627]
[1737103461071,1.5028,214.85,214.78,7.32484627]
[1737103461368,7.32484627,214.85,214.78,7.32484627]
[1737103461563,4.6551,214.86,214.78,7.32484627]
[1737103461769,7.32484627,214.87,214.78,7.32484627]
[1737103461969,7.32484627,214.87,214.8,7.32484627]
[1737103462361,4.655,214.86,214.81,4.656]
[1737103462561,7.32484627,214.87,214.81,4.656]
[1737103462767,7.32484627,214.87,214.8,7.32484627]
[1737103462966,4.6556,214.83,214.78,4.6565]
[1737103463159,7.32484627,214.85,214.77,7.32484627]
[1737103463364,7.32484627,214.85,214.79,7.32484627]
[1737103463561,4.6553,214.85,214.79,7.32484627]
[1737103465272,4.6553,214.85,214.81,4.6559]
[1737103465470,4.6549,214.86,214.81,4.6559]
[1737103467272,4.6549,214.86,214.81,11.98074627]
[1737103467467,4.6549,214.86,214.73,4.82]
[1737103467468,8.87112304,214.91,214.83,7.32484627]
[1737103467673,4.6546,214.88,214.83,11.98034627]
[1737103469069,4.6546,214.88,214.84,4.6553]
[1737103469269,7.43579861,214.91,214.83,7.32484627]
[1737103469470,7.32484627,214.91,214.83,7.32484627]
[1737103470167,4.654,214.9,214.83,7.32484627]
[1737103470370,7.32484627,214.91,214.85,7.32484627]
[1737103470774,4.6541,214.9,214.85,11.97994627]
[1737103471376,7.32484627,214.91,214.85,7.32484627]
[1737103471575,4.6545,214.89,214.85,7.32484627]
[1737103472475,4.6544,214.89,214.85,7.32484627]
[1737103473473,4.6545,214.88,214.85,7.32484627]
[1737103473877,7.32484627,214.91,214.81,4.6559]
[1737103474083,4.6544,214.89,214.82,7.32484627]
[1737103474376,7.32484627,214.91,214.83,4.6555]
[1737103475280,4.6547,214.87,214.83,4.6555]
[1737103477675,4.6547,214.87,214.82,7.32484627]
[1737103477876,4.655,214.86,214.82,7.32484627]
[1737103478574,7.32484627,214.89,214.73,4.82]
[1737103478767,7.32484627,214.85,214.74,4.8]
[1737103478973,7.32484627,214.85,214.78,7.32484627]
[1737103479272,4.6556,214.83,214.78,7.32484627]
[1737103479975,7.32484627,214.85,214.78,7.32484627]
[1737103480378,5.49411855,214.9,214.8,7.32484627]
[1737103480578,4.6552,214.85,214.8,11.98104627]
[1737103481878,7.43306153,214.88,214.82,7.32484627]
[1737103482073,7.43306153,214.93,214.86,7.32484627]
[1737103482274,159.21005114,214.94,214.92,7.32484627]
[1737103483078,4.6526,214.97,214.92,7.32484627]
[1737103483478,7.32484627,214.99,214.92,7.32484627]
[1737103483674,4.6528,214.96,214.92,7.32484627]
[1737103483979,7.32484627,214.99,214.92,7.32484627]
[1737103484481,7.32484627,214.97,214.9,7.32484627]
[1737103484674,7.32484627,214.95,214.88,7.32484627]
[1737103484871,4.6534,214.94,214.88,7.32484627]
[1737103485479,4.6534,214.93,214.88,7.32484627]
[1737103486480,7.32484627,214.97,214.88,7.32484627]
[1737103486681,7.41516089,215.02,214.92,7.32484627]
[1737103486877,7.32484627,215.0,214.92,7.32484627]
[1737103487079,4.6521,214.99,214.94,4.6531]
[1737103489477,11.43478564,215.03,214.91,4.6536]
[1737103489878,4.6526,214.97,214.91,4.6536]
[1737103491283,4.6526,214.97,214.92,4.6536]
[1737103491985,12.88865208,215.02,214.88,11.43478564]
[1737103492181,4.6523,214.99,214.88,11.43478564]
[1737103492786,4.6523,214.99,214.91,4.6537]
[1737103492986,4.6523,214.98,214.88,11.43478564]
[1737103493885,7.41516089,215.02,214.88,11.43478564]
[1737103494090,11.43478564,215.0,214.88,11.43478564]
[1737103494495,4.6529,214.96,214.89,4.654]
[1737103494686,11.43478564,215.0,214.89,4.654]
[1737103494884,4.6534,214.93,214.87,4.6547]
[1737103495589,4.6534,214.93,214.88,4.6544]
[1737103495984,4.6534,214.93,214.86,4.8]
[1737103497186,4.6534,214.93,214.87,4.6547]
[1737103498101,4.6534,214.93,214.88,4.6544]
[1737103499696,11.43478564,214.97,214.88,4.6544]
[1737103501095,4.6534,214.94,214.88,4.6544]
[1737103501498,11.43478564,214.97,214.86,4.8]
[1737103502394,18.84325069,215.0,214.86,4.8]
[1737103502595,159.21005114,215.01,214.88,11.43478564]
[1737103502795,4.6526,214.97,214.92,4.6536]
[1737103503296,159.21005114,215.01,214.88,11.43478564]
[1737103503497,159.21005114,215.01,214.91,4.6538]
[1737103503891,4.653,214.95,214.89,4.6541]
[1737103504096,4.653,214.95,214.88,11.43478564]
[1737103504298,7.41378975,215.02,214.86,4.8]
[1737103504488,18.84857539,215.03,214.86,4.8]
[1737103504695,4.6533,214.94,214.89,4.6542]
[1737103505195,7.41378975,215.02,214.86,4.8]
[1737103505398,11.43478564,214.97,214.85,14.54128564]
[1737103506390,11.43478564,214.97,214.85,3.1065]
[1737103506598,4.5827,214.96,214.84,1.573]
[1737103506899,4.6542,214.9,214.85,4.6551]
[1737103507396,4.6543,214.89,214.85,4.6551]
[1737103507992,4.6541,214.9,214.85,4.6551]
[1737103508197,12.89600076,214.95,214.85,4.6551]
[1737103508394,11.99648975,214.96,214.84,1.573]
[1737103508601,4.6543,214.89,214.84,1.573]
[1737103509094,7.41378975,214.95,214.84,1.573]
[1737103509294,11.43478564,214.91,214.81,5.18457242]
[1737103509499,7.32703443,214.88,214.81,5.18457242]
[1737103509695,7.32703443,214.86,214.8,7.32703443]
[1737103509996,7.32703443,214.86,214.76,6.3339]
[1737103509997,7.32703443,214.84,214.76,1.5539]
[1737103510191,7.32703443,214.84,214.77,7.32703443]
[1737103510600,4.6558,214.83,214.77,11.98393443]
[1737103510800,7.32703443,214.84,214.77,11.98393443]
[1737103511201,4.6554,214.84,214.79,4.6564]
[1737103511394,11.44979279,214.9,214.76,13.00369279]
[1737103511698,4.6561,214.81,214.76,13.00369279]
[1737103512002,4.6561,214.81,214.76,6.2108]
[1737103512201,4.6561,214.81,214.73,16.24979279]
[1737103512402,4.6561,214.81,214.76,4.657]
[1737103512603,4.6563,214.8,214.73,16.24979279]
[1737103512805,4.6563,214.8,214.74,4.6574]
[1737103513405,4.6565,214.79,214.74,4.6574]
[1737103513605,4.6565,214.79,214.7,11.44979279]
[1737103513805,11.44979279,214.84,214.72,4.6578]
[1737103514006,4.6568,214.78,214.72,4.6578]
[1737103514507,11.44979279,214.84,214.7,11.44979279]
[1737103515601,11.44979279,214.87,214.73,11.44979279]
[1737103515807,11.44979279,214.87,214.75,4.6573]
[1737103516308,4.656,214.81,214.75,4.6573]
[1737103517706,4.6563,214.8,214.74,4.6575]
[1737103518609,4.6566,214.79,214.72,4.6578]
[1737103518909,11.44979279,214.84,214.72,4.6578]
[1737103519104,4.6575,214.75,214.69,4.6585]
[1737103519999,4.3941,214.8,214.7,4.6583]
[1737103521204,4.6571,214.76,214.7,4.6583]
[1737103522409,4.658,214.72,214.67,4.6589]
[1737103523211,11.44979279,214.78,214.67,4.6589]
[1737103523607,11.44979279,214.78,214.66,4.6593]
[1737103524209,11.44979279,214.75,214.63,15.92129279]
[1737103524406,11.44979279,214.75,214.64,4.6595]
[1737103524901,4.6581,214.72,214.63,19.09129279]
[1737103525107,11.44979279,214.75,214.63,19.09129279]
[1737103525304,11.44979279,214.75,214.6,11.44979279]
[1737103526513,4.6586,214.7,214.6,11.44979279]
[1737103527815,19.0,214.57,214.45,6.37219094]
[1737103528018,19.0,214.57,214.44,19.11657283]
[1737103528019,11.44979279,214.46,214.44,19.11657283]
[1737103528309,11.44979279,214.46,214.41,76.46629135]
[1737103528514,11.44979279,214.42,214.41,76.46629135]
[1737103528715,11.44979279,214.42,214.41,67.19629136]
[1737103528918,11.44979279,214.42,214.27,2.9212]
[1737103529307,11.44979279,214.42,214.27,14.37099279]
[1737103529513,11.44979279,214.42,214.29,6.2012]
[1737103530019,11.44979279,214.39,214.24,11.44979279]
[1737103530215,11.44979279,214.39,214.27,4.6677]
[1737103530415,11.44979279,214.42,214.27,11.44979279]
[1737103530618,11.44979279,214.45,214.31,4.6668]
[1737103530918,11.44979279,214.45,214.3,11.44979279]
[1737103531118,4.6645,214.42,214.3,16.11679279]
[1737103531321,11.44979279,214.48,214.33,11.44979279]
[1737103531616,11.44979279,214.48,214.34,2.9437]
[1737103532218,6.38,214.5,214.37,11.44979279]
[1737103532409,4.6633,214.48,214.37,11.44979279]
[1737103532609,17.82979279,214.5,214.37,11.44979279]
[1737103532808,11.44979279,214.5,214.37,11.44979279]
[1737103533019,4.6637,214.46,214.36,4.6656]
[1737103533215,11.44979279,214.47,214.34,2.9437]
[1737103533416,11.44979279,214.44,214.34,2.9437]
[1737103533615,4.6652,214.39,214.34,2.9437]
[1737103533819,11.44979279,214.41,214.34,1.4961]
[1737103534219,4.6653,214.38,214.31,1.4406]
[1737103534422,11.44979279,214.41,214.31,1.4406]
[1737103535321,4.6657,214.37,214.31,1.4406]
[1737103535525,11.44979279,214.41,214.31,1.4406]
[1737103536020,4.6653,214.38,214.31,1.4406]
[1737103536220,11.44979279,214.41,214.31,1.4406]
[1737103536516,16.11459279,214.41,214.31,6.1074]
[1737103536716,4.6648,214.41,214.31,1.4406]
[1737103538121,16.11459279,214.41,214.32,4.6664]
[1737103538315,11.44979279,214.41,214.31,1.4406]
[1737103538516,6.4,214.47,214.31,1.4406]
[1737103538717,11.44979279,214.42,214.31,1.4406]
[1737103538917,4.6652,214.39,214.31,1.4406]
[1737103539315,11.44979279,214.42,214.31,1.4406]
[1737103539522,4.6654,214.38,214.31,1.4406]
[1737103540023,4.6652,214.39,214.31,0.12259553]
[1737103540321,11.44979279,214.39,214.27,1.5626]
[1737103540922,4.666,214.35,214.27,1.5626]
[1737103541118,11.44979279,214.39,214.27,1.5626]
[1737103542128,4.6661,214.35,214.27,1.5626]
[1737103543117,4.6661,214.35,214.27,6.2303]
[1737103543826,4.6661,214.35,214.28,4.6675]
[1737103544227,4.6664,214.34,214.27,1.5626]
[1737103544428,4.6664,214.34,214.27,6.2303]
[1737103544828,11.44979279,214.35,214.22,3.85985846]
[1737103545124,11.44979279,214.38,214.23,4.5057]
[1737103545329,4.6651,214.4,214.23,4.5057]
[1737103545629,11.44979279,214.38,214.27,4.6677]
[1737103546027,4.6661,214.35,214.28,4.6675]
[1737103546224,4.6661,214.35,214.23,4.5057]
[1737103546629,4.6661,214.35,214.27,4.6676]
[1737103547030,4.6657,214.37,214.24,11.44979279]
[1737103547230,11.44979279,214.41,214.31,4.6668]
[1737103547632,11.44979279,214.41,214.27,11.44979279]
[1737103547939,11.44979279,214.38,214.23,4.5057]
[1737103548637,11.44979279,214.35,214.23,4.5057]
[1737103549036,11.44979279,214.35,214.23,9.1742]
[1737103549240,11.44979279,214.32,214.23,9.1742]
[1737103549833,11.44979279,214.32,214.23,1.5022]
[1737103550038,11.44979279,214.32,214.21,4.6689]
[1737103550039,11.44979279,214.29,214.16,11.44979279]
[1737103550242,11.44979279,214.29,214.17,2.9394]
[1737103551242,11.44979279,214.26,214.17,2.9394]
[1737103551541,11.44979279,214.29,214.17,2.9394]
[1737103551730,4.6678,214.27,214.2,4.6692]
[1737103552331,11.44979279,214.29,214.17,2.9394]
[1737103552535,11.44979279,214.29,214.18,4.6695]
[1737103552738,11.44979279,214.29,214.17,2.9394]
[1737103553040,11.44979279,214.29,214.13,11.44979279]
[1737103553338,11.44979279,214.29,214.14,2.9794]
[1737103553536,4.6682,214.25,214.14,2.9794]
[1737103553940,11.44979279,214.26,214.14,2.9794]
[1737103554442,4.6686,214.23,214.14,2.9794]
[1737103554643,11.44979279,214.26,214.14,2.9794]
[1737103554944,1.321,214.34,214.14,2.9794]
[1737103554945,4.6678,214.27,214.2,4.6692]
[1737103555246,11.44979279,214.23,213.97,87.38]
[1737103555442,11.44979279,214.23,214.12,1.5073]
[1737103555744,4.6689,214.22,214.15,4.6702]
[1737103555938,4.6689,214.22,214.12,3.0364]
[1737103556136,11.44979279,214.26,214.12,14.48619279]
[1737103557142,11.44979279,214.29,214.15,11.44979279]
[1737103557347,4.6675,214.28,214.22,4.6688]
[1737103557745,1.321,214.34,214.18,11.44979279]
[1737103557746,11.44979279,214.32,214.18,11.44979279]
[1737103558046,4.6673,214.29,214.22,4.6687]
[1737103558249,11.44979279,214.32,214.18,11.44979279]
[1737103558543,11.44979279,214.32,214.12,3.0364]
[1737103558544,4.6684,214.25,214.15,11.44979279]
[1737103558748,11.44979279,214.29,214.15,11.44979279]
[1737103560051,4.668,214.26,214.2,4.6691]
[1737103560246,11.44979279,214.29,214.15,11.44979279]
[1737103560551,159.21005114,214.28,214.23,4.6685]
[1737103560752,159.21005114,214.28,214.18,11.44979279]
[1737103561144,159.21005114,214.28,214.25,4.6681]
[1737103561339,159.21005114,214.29,214.13,6.14]
[1737103561543,159.21005114,214.29,214.24,11.44979279]
[1737103561845,159.21005114,214.33,214.29,4.6672]
[1737103562246,159.21005114,214.33,214.27,11.44979279]
[1737103562452,159.21005114,214.32,214.27,11.44979279]
[1737103562951,159.21005114,214.32,214.3,4.6669]
[1737103563249,159.21005114,214.31,214.27,11.44979279]
[1737103563644,191.05206136,214.33,214.27,11.44979279]
[1737103563645,159.21005114,214.3,214.28,4.6675]
[1737103563851,159.21005114,214.3,214.27,11.44979279]
[1737103564347,28.32214593,214.32,214.23,2.9887]
[1737103564548,32.98894593,214.32,214.23,14.43849279]
[1737103565045,28.32214593,214.32,214.27,4.6677]
[1737103565346,191.05206136,214.28,214.22,1.5636]
[1737103565550,191.05206136,214.28,214.15,12.92559279]
[1737103565749,191.05206136,214.28,214.26,11.44979279]
[1737103565949,188.67826136,214.28,214.26,11.44979279]
[1737103566149,179.40826137,214.28,214.27,7.7143]
[1737103566348,177.03466137,214.28,214.27,7.7143]
[1737103566548,69.96858765,214.28,214.27,7.7143]
[1737103567153,65.22118765,214.28,214.27,7.7143]
[1737103567348,28.32214593,214.32,214.27,3.0466]
[1737103567651,28.32214593,214.32,214.3,11.44979279]
[1737103567849,28.32214593,214.32,214.31,4.6669]
[1737103568045,191.05206136,214.33,214.3,11.44979279]
[1737103568949,191.05206136,214.33,214.32,4.6667]
[1737103569145,188.67876136,214.33,214.32,4.6667]
[1737103569343,61.41468764,214.33,214.32,4.6667]
[1737103569651,18.58568764,214.33,214.32,4.6667]
[1737103569853,1.455,214.43,214.3,11.44979279]
[1737103570150,1.455,214.43,214.36,11.44979279]
[1737103570351,1.455,214.43,214.37,4.6655]
[1737103570551,1.5317,214.46,214.37,4.6655]
[1737103570753,6.1953,214.46,214.39,11.44979279]
[1737103571449,4.6639,214.45,214.39,11.44979279]
[1737103571951,5.9866,214.44,214.39,11.44979279]
[1737103572454,1.3225,214.44,214.39,11.44979279]
[1737103572651,4.6643,214.43,214.39,11.44979279]
[1737103572850,1.3225,214.44,214.4,5.1095968]
[1737103573252,1.3225,214.44,214.4,2.7374968]
[1737103573452,1.3225,214.44,214.33,19.29222996]
[1737103573855,4.6656,214.37,214.33,19.29222996]
[1737103574054,1.3225,214.44,214.33,19.29222996]
[1737103574254,1.3225,214.44,214.3,4.667]
[1737103574858,4.665,214.4,214.3,4.667]
[1737103575058,1.3225,214.44,214.31,4.6668]
[1737103575259,1.3225,214.44,214.28,11.44979279]
[1737103575454,1.3225,214.44,214.29,3.83332884]
[1737103575753,11.44979279,214.42,214.3,3.83332884]
[1737103576059,11.44979279,214.42,214.28,11.44979279]
[1737103576363,11.44979279,214.42,214.29,3.83340656]
[1737103576561,11.44979279,214.42,214.3,3.83340656]
[1737103576750,11.44979279,214.42,214.28,11.44979279]
[1737103577058,4.6654,214.38,214.3,4.6669]
[1737103577259,11.44979279,214.42,214.28,11.44979279]
[1737103577458,11.44979279,214.42,214.29,3.83390296]
[1737103577761,11.44979279,214.42,214.28,11.44979279]
[1737103577967,11.44979279,214.42,214.29,3.83457658]
[1737103578257,11.44979279,214.42,214.28,11.44979279]
[1737103578451,11.44979279,214.42,214.29,3.83516067]
[1737103578654,11.44979279,214.39,214.23,1.5219]
[1737103578859,11.44979279,214.39,214.24,15.28479318]
[1737103579157,11.44979279,214.39,214.25,3.83500039]
[1737103579354,11.44979279,214.39,214.24,11.44979279]
[1737103579355,11.44979279,214.36,214.26,3.83500039]
[1737103579556,2.9671,214.35,214.24,11.44979279]
[1737103579753,11.44979279,214.33,214.21,4.669]
[1737103579958,11.44979279,214.33,214.18,15.33227765]
[1737103580158,11.44979279,214.33,214.19,3.83907706]
[1737103580361,11.44979279,214.33,214.18,15.33227765]
[1737103580861,4.6677,214.28,214.22,4.6688]
[1737103581360,16.11709279,214.3,214.22,4.6688]
[1737103581562,11.44979279,214.33,214.2,11.44979279]
[1737103581764,11.44979279,214.33,214.25,4.6681]
[1737103582365,4.6669,214.31,214.2,11.44979279]
[1737103582557,11.44979279,214.33,214.2,11.44979279]
[1737103582759,1.4486,214.34,214.2,11.44979279]
[1737103583065,1.4486,214.34,214.23,11.44979279]
[1737103583266,1.4486,214.34,214.25,4.668]
[1737103584162,4.6667,214.32,214.25,4.668]
[1737103584364,11.44979279,214.33,214.23,4.6684]
[1737103584557,11.44979279,214.33,214.2,11.44979279]
[1737103584761,1.4486,214.34,214.2,11.44979279]
[1737103585265,6.115,214.34,214.23,11.44979279]
[1737103585867,4.6665,214.33,214.23,11.44979279]
[1737103586368,4.6667,214.32,214.26,4.6679]
[1737103586868,1.4486,214.34,214.2,11.44979279]
[1737103587070,4.6672,214.3,214.24,4.6684]
[1737103587763,1.4486,214.34,214.2,11.44979279]
[1737103587961,4.6669,214.31,214.25,4.6682]
[1737103589669,1.4486,214.34,214.23,11.44979279]
[1737103590072,4.6665,214.33,214.27,4.6677]
[1737103590369,1.4486,214.34,214.23,11.44979279]
[1737103590868,4.6668,214.32,214.26,4.6678]
[1737103591070,1.4486,214.34,214.23,11.44979279]
[1737103591367,4.6673,214.3,214.23,11.44979279]
[1737103591563,1.4486,214.34,214.23,11.44979279]
[1737103591872,4.6669,214.32,214.25,4.6682]
[1737103592171,1.4486,214.34,214.23,11.44979279]
[1737103594269,4.6666,214.33,214.27,4.6676]
[1737103594468,4.6666,214.33,214.23,11.44979279]
[1737103595168,4.6667,214.32,214.26,4.668]
[1737103595569,4.6672,214.3,214.24,4.6683]
[1737103595968,4.6672,214.3,214.2,11.44979279]
[1737103596171,1.4486,214.34,214.2,11.44979279]
[1737103596469,11.44979279,214.33,214.2,11.44979279]
[1737103596773,11.44979279,214.33,214.23,4.6685]
[1737103597171,11.44979279,214.33,214.22,4.6689]
[1737103597370,11.44979279,214.33,214.2,11.44979279]
[1737103597867,11.44979279,214.33,214.22,4.6687]
[1737103598368,4.6677,214.28,214.22,4.6687]
[1737103598573,4.6677,214.28,214.23,4.6687]
[1737103599268,4.6678,214.27,214.23,4.6687]
[1737103599473,11.44979279,214.33,214.2,4.6694]
[1737103600474,11.44979279,214.33,214.17,12.94239279]
[1737103600475,11.44979279,214.33,214.21,4.6691]
[1737103602071,4.6682,214.26,214.21,4.6691]
[1737103602465,11.44979279,214.33,214.17,12.94239279]
[1737103602669,1.4486,214.34,214.2,11.44979279]
[1737103602872,4.667,214.31,214.2,11.44979279]
[1737103603073,1.4486,214.34,214.25,4.6681]
[1737103603872,1.4486,214.34,214.2,11.44979279]
[1737103604269,4.6667,214.33,214.23,11.44979279]
[1737103604471,4.6667,214.33,214.29,4.6673]
[1737103605076,2.9671,214.35,214.23,11.44979279]
[1737103605271,4.6675,214.29,214.23,11.44979279]
[1737103606367,2.9671,214.35,214.23,11.44979279]
[1737103607482,4.6668,214.32,214.26,4.668]
[1737103607667,2.9671,214.35,214.23,11.44979279]
[1737103607868,4.6657,214.37,214.31,4.667]
[1737103608066,11.44979279,214.42,214.26,5.64]
[1737103608272,11.44979279,214.45,214.3,11.44979279]
[1737103608471,11.44979279,214.45,214.33,11.44979279]
[1737103608672,4.6649,214.41,214.35,4.6661]
[1737103609070,11.44979279,214.45,214.35,4.6661]
[1737103609282,11.44979279,214.45,214.33,11.44979279]
[1737103609471,11.44979279,214.45,214.36,4.6658]
[1737103609670,11.44979279,214.45,214.33,11.44979279]
[1737103609877,4.6648,214.42,214.37,4.6657]
[1737103610077,11.44979279,214.45,214.33,11.44979279]
[1737103610275,4.6291,214.47,214.33,11.44979279]
[1737103610476,4.6291,214.47,214.36,11.44979279]
[1737103610789,5.64,214.53,214.36,17.06979279]
[1737103610790,11.44979279,214.51,214.36,17.06979279]
[1737103610970,11.44979279,214.51,214.41,4.6647]
[1737103610971,4.6635,214.47,214.41,4.6647]
[1737103612178,11.44979279,214.51,214.36,17.06979279]
[1737103613280,4.6639,214.45,214.39,4.6652]
[1737103613781,4.6637,214.47,214.39,4.6652]
[1737103613980,4.6637,214.47,214.4,4.665]
[1737103615181,4.6637,214.47,214.41,4.6648]
[1737103615381,4.6637,214.47,214.36,17.06979279]
[1737103616580,4.6638,214.46,214.4,4.6649]
[1737103616781,11.44979279,214.51,214.4,4.6649]
[1737103617078,4.6637,214.47,214.4,4.6649]
[1737103617877,4.6639,214.46,214.4,4.6649]
[1737103618481,11.44979279,214.48,214.34,1.5622]
[1737103619578,4.6642,214.44,214.35,4.666]
[1737103619784,7.42384451,214.47,214.35,4.666]
[1737103619983,11.44979279,214.48,214.35,4.666]
[1737103620180,4.6651,214.4,214.35,4.666]
[1737103620386,11.44979279,214.42,214.17,11.44979279]
[1737103620588,11.44979279,214.39,214.25,11.44979279]
[1737103620887,4.6652,214.4,214.28,11.44979279]
[1737103621279,11.44979279,214.42,214.28,11.44979279]
[1737103621480,4.6653,214.39,214.34,4.6664]
[1737103621682,11.44979279,214.42,214.28,11.44979279]
[1737103621881,1.5386,214.47,214.31,11.44979279]
[1737103622186,4.6641,214.45,214.39,4.6652]
[1737103622390,1.5386,214.47,214.35,11.44979279]
[1737103622691,4.6637,214.47,214.4,4.665]
[1737103622885,11.44979279,214.5,214.4,4.665]
[1737103623190,4.6638,214.46,214.39,4.6651]
[1737103623386,11.44979279,214.5,214.39,4.6651]
[1737103624284,4.6642,214.44,214.39,4.6651]
[1737103627090,11.44979279,214.5,214.37,4.6655]
[1737103627388,4.6645,214.43,214.35,11.44979279]
[1737103627784,11.44979279,214.5,214.35,11.44979279]
[1737103628392,4.664,214.45,214.38,4.6655]
[1737103628591,11.44979279,214.5,214.38,4.6655]
[1737103629190,4.6642,214.44,214.38,4.6655]
[1737103630688,4.6642,214.44,214.39,4.6652]